bitfinex/quotes_ETHUSD_20230102
["timestamp","ask_amount","ask_price","bid_price","bid_amount"]
[1672661618305,5.0,1218.5,1218.4,12.60488975]
[1672661618508,5.0,1218.5,1218.4,12.67099846]
[1672661619251,5.0,1218.5,1218.4,4.46351846]
[1672661619462,5.0,1218.5,1218.4,4.39740975]
[1672661624230,5.0,1218.5,1218.4,24.31236975]
[1672661624446,5.0,1218.5,1218.4,24.37847846]
[1672661624966,5.0,1218.5,1218.4,12.67099846]
[1672661627855,0.06435204,1218.6,1218.4,12.67099846]
[1672661628065,23.0526812,1218.7,1218.4,12.67099846]
[1672661628770,5.0,1218.5,1218.4,12.67099846]
[1672661632559,5.0,1218.5,1218.4,29.08595846]
[1672661638442,5.0,1218.5,1218.4,37.38971846]
[1672661638645,0.06435204,1218.6,1218.5,28.12043]
[1672661638841,0.68035204,1219.0,1218.5,33.55848177]
[1672661639050,0.616,1219.0,1218.8,24.61437]
[1672661639389,0.616,1219.0,1218.9,12.35297114]
[1672661639532,0.616,1219.0,1218.9,12.67146367]
[1672661639743,0.9556538,1219.1,1218.9,12.67146367]
[1672661640645,5.0,1219.0,1218.9,12.67146367]
[1672661640865,5.00235204,1219.0,1218.9,12.67146367]
[1672661642811,5.00235204,1219.0,1218.9,4.46735367]
[1672661643120,5.00235204,1219.0,1218.9,4.40124496]
[1672661646364,5.00235204,1219.0,1218.9,20.80946496]
[1672661646510,5.00235204,1219.0,1218.9,20.87557367]
[1672661650946,0.00235204,1219.0,1218.9,20.87557367]
[1672661651234,0.3396538,1219.1,1218.9,20.87557367]
[1672661652035,5.0,1219.0,1218.9,20.87557367]
[1672661652257,5.00235204,1219.0,1218.9,20.87557367]
[1672661653486,5.00235204,1219.0,1218.9,29.07968367]
[1672661653689,5.00235204,1219.0,1218.9,20.87557367]
[1672661654115,5.00235204,1219.0,1218.9,29.07968367]
[1672661655478,5.00235204,1219.0,1218.9,29.49286786]
[1672661656272,5.00235204,1219.0,1218.9,29.07968367]
[1672661657878,0.00235204,1219.0,1218.9,29.07968367]
[1672661658088,0.3396538,1219.1,1218.9,29.07968367]
[1672661658946,5.0,1219.0,1218.9,29.07968367]
[1672661659155,5.00235204,1219.0,1218.9,29.07968367]
[1672661661596,5.00235204,1219.0,1218.9,29.07767407]
[1672661664532,5.00235204,1219.0,1218.9,29.49393436]
[1672661664979,0.00235204,1219.0,1218.9,29.49393436]
[1672661665147,0.3396538,1219.1,1218.9,20.87356407]
[1672661665778,0.3396538,1219.1,1219.0,4.14886114]
[1672661665989,5.3396538,1219.1,1219.0,4.14886114]
[1672661666383,5.34200584,1219.1,1219.0,4.14886114]
[1672661670985,21.74754584,1219.1,1219.0,4.14886114]
[1672661674456,13.54477584,1219.1,1219.0,4.14886114]
[1672661675531,5.34200584,1219.1,1219.0,4.14886114]
[1672661684887,5.34200584,1219.1,1219.0,4.14555089]
[1672661688306,0.34200584,1219.1,1219.0,4.14555089]
[1672661688472,0.3396538,1219.1,1219.0,4.14555089]
[1672661688681,8.5424238,1219.1,1219.0,4.14555089]
[1672661688894,16.10751442,1219.1,1219.0,4.14555089]
[1672661694076,7.90474442,1219.1,1219.0,4.14555089]
[1672661694672,2.90474442,1219.1,1219.0,4.14555089]
[1672661695045,2.90239238,1219.1,1219.0,4.14555089]
[1672661695845,7.90239238,1219.1,1219.0,4.14555089]
[1672661696061,7.90474442,1219.1,1219.0,4.14555089]
[1672661697563,24.31028442,1219.1,1218.9,0.06610871]
[1672661697880,5.0,1219.0,1218.8,10.38704497]
[1672661698031,5.00235204,1219.0,1218.8,14.53590611]
[1672661701212,5.00235204,1219.0,1218.9,4.14886114]
[1672661706139,5.00235204,1219.0,1218.9,4.14640606]
[1672661707566,0.00235204,1219.0,1218.9,4.14640606]
[1672661707713,11.10751442,1219.1,1218.9,4.14640606]
[1672661708452,5.0,1219.0,1218.9,4.14640606]
[1672661708662,5.00235204,1219.0,1218.9,4.14640606]
[1672661709115,5.00235204,1219.0,1218.9,12.35051606]
[1672661709322,5.00235204,1219.0,1218.9,4.21251477]
[1672661709516,5.00235204,1219.0,1218.9,4.14640606]
[1672661718929,21.40923204,1219.0,1218.9,4.14640606]
[1672661719286,5.00235204,1219.0,1218.9,4.14640606]
[1672661721235,4.99986711,1219.0,1218.9,4.14640606]
[1672661721427,4.99751507,1219.0,1218.9,4.14640606]
[1672661724762,4.99751507,1219.0,1218.9,12.35051606]
[1672661724904,4.99751507,1219.0,1218.9,12.41662477]
[1672661729075,0.40400584,1219.1,1218.9,12.41662477]
[1672661729243,0.3396538,1219.1,1218.9,12.41662477]
[1672661730743,5.0,1219.0,1218.9,12.41662477]
[1672661731068,5.00235204,1219.0,1218.9,12.41662477]
[1672661731867,5.00235204,1219.0,1218.9,20.62073477]
[1672661734332,5.00235204,1219.0,1218.9,12.41662477]
[1672661736823,0.00235204,1219.0,1218.9,20.62073477]
[1672661737056,5.0,1219.0,1218.9,20.62073477]
[1672661737258,5.00235204,1219.0,1218.9,12.41662477]
[1672661737452,5.00235204,1219.0,1218.9,20.62073477]
[1672661739325,5.00235204,1219.0,1218.9,28.82484477]
[1672661740587,5.00235204,1219.0,1218.9,20.62073477]
[1672661742003,5.00235204,1219.0,1218.9,20.61701299]
[1672661743014,0.00235204,1219.0,1218.9,20.61701299]
[1672661743376,0.3396538,1219.1,1218.9,28.82112299]
[1672661744102,5.0,1219.0,1218.9,28.82112299]
[1672661744295,5.00235204,1219.0,1218.9,28.82112299]
[1672661744472,5.00235204,1219.0,1218.9,20.61701299]
[1672661748250,5.00235204,1219.0,1218.9,28.82112299]
[1672661748461,5.00235204,1219.0,1218.9,20.61701299]
[1672661750095,0.00235204,1219.0,1218.9,20.61701299]
[1672661750311,0.3396538,1219.1,1218.9,20.61701299]
[1672661751122,5.0,1219.0,1218.9,20.61701299]
[1672661751374,5.00235204,1219.0,1218.9,20.61701299]
[1672661751760,5.00235204,1219.0,1218.9,35.83517513]
[1672661751963,2.0531,1219.0,1218.9,41.73132969]
[1672661752282,0.3416538,1219.1,1219.0,3.5]
[1672661752513,0.3416538,1219.1,1219.0,39.94209292]
[1672661752514,0.3396538,1219.1,1219.0,39.94209292]
[1672661752686,0.3396538,1219.1,1219.0,40.26058545]
[1672661753172,5.3396538,1219.1,1219.0,40.26058545]
[1672661753426,5.3396538,1219.1,1219.0,44.31058545]
[1672661753427,0.3396538,1219.1,1219.0,44.31058545]
[1672661754258,0.3396538,1219.1,1219.0,19.71024544]
[1672661754474,0.3396538,1219.1,1219.0,27.91368544]
[1672661755151,0.3396538,1219.1,1219.0,34.09512544]
[1672661755333,0.3396538,1219.1,1219.0,33.47902544]
[1672661756419,0.3396538,1219.1,1219.0,41.68246544]
[1672661756633,0.3396538,1219.1,1219.0,21.77558544]
[1672661756846,0.3396538,1219.1,1219.0,13.57214544]
[1672661757063,5.3396538,1219.1,1219.0,13.57214544]
[1672661757282,5.3396538,1219.1,1219.0,21.77558544]
[1672661757765,5.3396538,1219.1,1219.0,38.18246544]
[1672661758487,5.3396538,1219.1,1219.0,42.41797176]
[1672661758687,5.3396538,1219.1,1219.0,44.44397176]
[1672661758942,0.066,1219.2,1219.1,5.3713593]
[1672661759155,0.066,1219.6,1219.1,50.82579483]
[1672661759378,0.7502924,1219.7,1219.5,4.14886114]
[1672661759587,0.7502924,1219.7,1219.6,24.81191796]
[1672661759740,0.7502924,1219.7,1219.6,23.86615367]
[1672661759947,0.7502924,1219.7,1219.6,28.36041049]
[1672661760162,0.7502924,1219.7,1219.6,11.35334472]
[1672661760493,0.7502924,1219.7,1219.6,21.09615367]
[1672661760917,5.7502924,1219.7,1219.6,12.89675367]
[1672661761318,5.7502924,1219.7,1219.6,21.09615367]
[1672661761535,5.7502924,1219.7,1219.6,30.37341049]
[1672661761910,5.7502924,1219.7,1219.6,38.57281049]
[1672661762093,0.7502924,1219.7,1219.6,43.30747881]
[1672661762303,0.126,1220.2,1219.7,4.14886114]
[1672661762513,4.2502924,1220.3,1219.9,4.14886114]
[1672661762514,0.7502924,1220.3,1219.9,4.14886114]
[1672661762689,0.7502924,1220.3,1220.0,4.14886114]
[1672661762690,13.72037,1220.2,1220.0,4.14886114]
[1672661762902,5.525,1220.2,1220.0,4.14886114]
[1672661763349,2.025,1220.2,1220.0,4.14886114]
[1672661763522,17.8219424,1220.3,1220.1,4.14886114]
[1672661763523,3.4586924,1220.3,1220.1,4.14886114]
[1672661763903,5.0,1220.2,1220.1,4.15090976]
[1672661764679,20.75037,1220.2,1220.0,0.06610871]
[1672661765017,2.026,1220.1,1219.8,14.57280871]
[1672661765346,2.027,1219.9,1219.8,0.06610871]
[1672661765579,2.6426,1219.9,1219.5,20.82980871]
[1672661765796,2.6426,1219.9,1219.6,4.14886114]
[1672661765797,2.028,1219.8,1219.6,4.14886114]
[1672661766002,17.839786,1219.9,1219.7,4.14886114]
[1672661766219,5.0,1219.8,1219.7,4.14886114]
[1672661766367,5.0,1219.8,1219.6,0.06610871]
[1672661766751,5.0,1219.8,1219.6,4.14886114]
[1672661766883,5.0,1219.8,1219.7,4.14886114]
[1672661767098,5.0,1219.8,1219.7,12.34759114]
[1672661767363,5.0,1219.8,1219.7,12.41369985]
[1672661767729,5.0,1219.8,1219.7,20.61242985]
[1672661767934,5.0,1219.8,1219.7,12.41369985]
[1672661768783,5.0,1219.8,1219.7,4.21496985]
[1672661769150,5.0,1219.8,1219.7,4.14886114]
[1672661770730,5.0,1219.8,1219.6,0.06610871]
[1672661770731,3.5,1219.7,1219.6,0.06610871]
[1672661770879,35.73989,1219.7,1219.2,29.82434871]
[1672661771088,2.011,1219.6,1219.3,7.64886114]
[1672661771300,26.60967,1219.6,1219.4,4.14886114]
[1672661771615,26.60967,1219.6,1219.3,0.06610871]
[1672661771823,7.026,1219.5,1219.3,4.14886114]
[1672661772032,7.6418,1219.5,1219.3,4.14886114]
[1672661772487,7.026,1219.5,1219.3,4.14886114]
[1672661772706,7.026,1219.5,1219.4,4.14886114]
[1672661772917,5.0,1219.5,1219.4,28.75111114]
[1672661773131,5.0,1219.5,1219.4,23.49819184]
[1672661774572,5.0,1219.5,1219.4,15.29744184]
[1672661775038,5.0,1219.5,1219.4,4.21496985]
[1672661775262,5.0,1219.5,1219.4,4.14886114]
[1672661776230,5.0,1219.5,1219.4,12.34961114]
[1672661776420,5.0,1219.5,1219.4,12.41571985]
[1672661779328,13.20008,1219.5,1219.4,4.21496985]
[1672661779704,5.0,1219.5,1219.4,4.14886114]
[1672661782173,18.48620403,1219.5,1219.4,4.14886114]
[1672661783626,18.48620403,1219.5,1219.4,4.14599722]
[1672661787441,18.48620403,1219.5,1219.4,12.34674722]
[1672661787662,18.48620403,1219.5,1219.4,12.41285593]
[1672661788350,18.48620403,1219.5,1219.4,28.81435593]
[1672661789107,18.48620403,1219.5,1219.4,20.61360593]
[1672661789319,13.48620403,1219.5,1219.4,20.61360593]
[1672661789971,34.88636403,1219.5,1219.4,4.21210593]
[1672661790123,18.48620403,1219.5,1219.4,4.14599722]
[1672661791166,18.48620403,1219.5,1219.4,12.34674722]
[1672661791376,18.48620403,1219.5,1219.4,12.41285593]
[1672661792700,18.48620403,1219.5,1219.4,20.61360593]
[1672661793183,18.48620403,1219.5,1219.4,24.70756982]
[1672661793647,18.48620403,1219.5,1219.4,20.61360593]
[1672661794441,18.48620403,1219.5,1219.4,28.81435593]
[1672661796035,18.48620403,1219.5,1219.4,20.61360593]
[1672661796203,18.48620403,1219.5,1219.4,28.81435593]
[1672661797191,18.4822268,1219.5,1219.4,20.61360593]
[1672661798122,18.4822268,1219.5,1219.4,28.81435593]
[1672661798328,18.4822268,1219.5,1219.4,20.61360593]
[1672661798610,18.4822268,1219.5,1219.4,12.41285593]
[1672661799329,18.4822268,1219.5,1219.4,4.21210593]
[1672661799621,18.4822268,1219.5,1219.4,12.34674722]
[1672661799778,18.4822268,1219.5,1219.4,12.41285593]
[1672661801409,13.4822268,1219.5,1219.4,12.41285593]
[1672661802088,13.4822268,1219.5,1219.4,4.21210593]
[1672661802296,13.4822268,1219.5,1219.4,4.14599722]
[1672661802720,18.4822268,1219.5,1219.4,4.14599722]
[1672661804860,18.4822268,1219.5,1219.4,12.34674722]
[1672661805073,18.4822268,1219.5,1219.4,12.41285593]
[1672661806034,18.4822268,1219.5,1219.4,28.81435593]
[1672661808456,18.4822268,1219.5,1219.4,32.51645258]
[1672661813951,13.4822268,1219.5,1219.4,32.51645258]
[1672661814303,18.4822268,1219.5,1219.4,32.51645258]
[1672661817666,18.4822268,1219.5,1219.4,32.51281082]
[1672661820296,13.4822268,1219.5,1219.4,32.51281082]
[1672661821412,18.4822268,1219.5,1219.4,32.51281082]
[1672661824189,5.0,1219.5,1219.4,32.51281082]
[1672661827264,11.66479933,1219.6,1219.4,32.51281082]
[1672661827475,11.59879933,1219.6,1219.5,4.14886114]
[1672661827682,11.59879933,1219.6,1219.5,12.34894114]
[1672661827914,11.59879933,1219.6,1219.5,12.41504985]
[1672661828295,16.59879933,1219.6,1219.5,12.41504985]
[1672661828560,5.0,1219.6,1219.5,12.41504985]
[1672661829994,5.0,1219.6,1219.5,4.21496985]
[1672661830187,5.0,1219.6,1219.5,12.34894114]
[1672661830396,5.0,1219.6,1219.5,12.41504985]
[1672661834323,0.6817,1219.7,1219.5,12.41504985]
[1672661834656,0.6157,1219.7,1219.5,12.41504985]
[1672661835231,5.0,1219.6,1219.5,12.41504985]
[1672661841491,0.6817,1219.7,1219.5,12.41504985]
[1672661841702,0.6157,1219.7,1219.5,12.41504985]
[1672661842018,0.6157,1219.7,1219.6,3.5]
[1672661842228,8.9349,1219.8,1219.6,8.1994]
[1672661842399,8.8689,1219.8,1219.6,16.46490871]
[1672661842607,10.31429,1219.8,1219.6,16.46279286]
[1672661843011,2.06109,1219.8,1219.6,16.46279286]
[1672661843216,0.6157,1219.8,1219.6,16.46279286]
[1672661844208,0.6157,1219.8,1219.6,12.412254]
[1672661853271,0.6157,1219.8,1219.6,20.611654]
[1672661853871,0.6157,1219.8,1219.6,12.412254]
[1672661855427,2.6346,1219.9,1219.6,12.412254]
[1672661855656,6.321688,1219.9,1219.6,12.412254]
[1672661855911,6.321688,1219.9,1219.6,20.611654]
[1672661856456,14.519088,1219.9,1219.6,12.412254]
[1672661857680,6.321688,1219.9,1219.6,20.611654]
[1672661859023,6.321688,1219.9,1219.6,12.412254]
[1672661859235,14.519338,1219.9,1219.6,4.21496985]
[1672661859382,14.519338,1219.9,1219.6,4.14886114]
[1672661859842,30.914638,1219.9,1219.6,4.14886114]
[1672661860603,3.5,1219.8,1219.5,8.52361345]
[1672661860765,8.19873,1219.7,1219.5,4.21496985]
[1672661860982,10.22373,1219.7,1219.5,4.14886114]
[1672661865091,10.22373,1219.7,1219.5,4.14632409]
[1672661870602,13.78912638,1219.7,1219.5,4.14632409]
[1672661872431,13.78912638,1219.7,1219.5,7.64632409]
[1672661872632,13.78912638,1219.7,1219.5,7.7124328]
[1672661874650,5.5334638,1219.8,1219.5,20.16276574]
[1672661874866,5.5334638,1219.8,1219.5,32.3124528]
[1672661874867,3.4414638,1219.8,1219.5,32.3124528]
[1672661875197,2.6896,1219.9,1219.5,32.3124528]
[1672661875408,2.6236,1219.9,1219.5,36.56211069]
[1672661875600,2.6236,1219.9,1219.7,8.19873]
[1672661875814,2.6236,1219.9,1219.7,8.26483871]
[1672661876036,4.731716,1219.9,1219.7,8.26483871]
[1672661877427,4.733716,1219.9,1219.7,8.26183871]
[1672661877738,4.731716,1219.9,1219.7,8.26483871]
[1672661878271,4.731716,1219.9,1219.7,16.46356871]
[1672661879900,4.731716,1219.9,1219.7,0.06610871]
[1672661880258,2.026,1219.8,1219.6,8.26486871]
[1672661880449,6.8207426,1219.8,1219.6,0.06610871]
[1672661880636,3.3207426,1219.8,1219.5,29.06417662]
[1672661881586,3.3207426,1219.8,1219.6,7.64886114]
[1672661881798,3.3207426,1219.8,1219.6,15.91428985]
[1672661882028,2.026,1219.8,1219.6,15.91428985]
[1672661882941,2.026,1219.8,1219.6,12.41428985]
[1672661883773,2.026,1219.8,1219.6,4.21496985]
[1672661883982,2.026,1219.8,1219.6,4.14886114]
[1672661884193,4.1471086,1219.8,1219.6,4.14886114]
[1672661885904,4.1471086,1219.8,1219.6,7.64886114]
[1672661886115,4.1471086,1219.8,1219.6,7.71496985]
[1672661886327,4.1471086,1219.8,1219.6,4.21496985]
[1672661886536,4.1471086,1219.8,1219.6,7.64886114]
[1672661886751,4.1471086,1219.8,1219.6,4.21496985]
[1672661886962,4.1471086,1219.8,1219.6,4.14886114]
[1672661887822,4.1471086,1219.8,1219.6,4.14522577]
[1672661890099,12.3451686,1219.8,1219.6,4.14522577]
[1672661893244,4.1471086,1219.8,1219.6,4.14522577]
[1672661893455,12.3451686,1219.8,1219.6,4.14522577]
[1672661900121,12.3471686,1219.8,1219.6,4.14522577]
[1672661900288,12.3451686,1219.8,1219.6,4.14522577]
[1672661901293,4.1471086,1219.8,1219.6,4.14522577]
[1672661901862,5.0,1219.7,1219.6,4.14522577]
[1672661903971,2.1871086,1219.8,1219.6,4.14522577]
[1672661904182,2.1211086,1219.8,1219.6,7.64522577]
[1672661904438,2.1211086,1219.8,1219.6,7.71133448]
[1672661905016,2.1211086,1219.8,1219.6,4.21133448]
[1672661905017,5.0,1219.7,1219.6,4.21133448]
[1672661905281,5.0,1219.7,1219.6,4.14522577]
[1672661910970,8.26415,1219.8,1219.6,4.14522577]
[1672661911164,8.19815,1219.8,1219.6,4.14522577]
[1672661911562,29.408896,1219.9,1219.6,4.14522577]
[1672661911942,29.342896,1219.9,1219.6,4.14522577]
[1672661912141,5.0,1219.7,1219.6,4.14522577]
[1672661927941,3.066,1219.8,1219.6,4.14522577]
[1672661927942,0.066,1219.8,1219.6,4.14522577]
[1672661928192,8.19814,1219.8,1219.6,4.14216062]
[1672661928363,11.1324626,1219.8,1219.6,4.14216062]
[1672661928784,5.0,1219.7,1219.6,4.14216062]
[1672661935238,4.99674153,1219.7,1219.6,4.14216062]
[1672661940775,21.39420153,1219.7,1219.5,0.09487526]
[1672661940989,21.39420153,1219.7,1219.5,4.17762769]
[1672661941401,13.19547153,1219.7,1219.5,4.17762769]
[1672661941611,5.0,1219.6,1219.5,4.17762769]
[1672661942868,5.0,1219.6,1219.5,4.14886114]
[1672661942984,34.24,1219.6,1219.4,0.06610871]
[1672661943191,7.86627294,1219.5,1219.0,9.84200871]
[1672661943393,7.86627294,1219.5,1219.0,13.99086985]
[1672661943394,8.20156,1219.3,1219.0,13.99086985]
[1672661943608,16.40312,1219.3,1219.0,13.99086985]
[1672661944069,8.81746,1219.3,1219.0,13.99086985]
[1672661944404,5.0,1219.2,1219.0,13.99086985]
[1672661944767,5.0,1219.2,1219.0,4.21496985]
[1672661944973,5.0,1219.2,1219.0,4.14886114]
[1672661945500,6.738346,1219.2,1219.0,4.14886114]
[1672661945748,14.940446,1219.2,1219.0,4.14886114]
[1672661945990,16.954446,1219.2,1219.0,4.14886114]
[1672661946388,25.156546,1219.2,1219.0,4.14886114]
[1672661946601,33.358646,1219.2,1219.0,4.14886114]
[1672661950432,25.156546,1219.2,1218.9,0.06610871]
[1672661950649,25.156546,1219.2,1218.8,27.61351]
[1672661950650,2.026,1219.1,1218.8,19.47487871]
[1672661950787,2.026,1219.1,1218.8,15.41928985]
[1672661950788,5.0,1218.9,1218.8,15.41928985]
[1672661950998,5.0,1218.9,1218.8,23.62407985]
[1672661955326,5.0,1218.9,1218.8,20.62407985]
[1672661955540,5.0,1218.9,1218.8,0.06610871]
[1672661955898,13.20411,1218.9,1218.7,9.23693142]
[1672661956117,21.40822,1218.9,1218.7,4.21419256]
[1672661956259,26.949578,1218.9,1218.7,4.14886114]
[1672661957215,10.541358,1218.9,1218.6,20.38683142]
[1672661957457,7.021,1218.9,1218.6,32.74181256]
[1672661957665,7.021,1218.9,1218.6,40.94793256]
[1672661957878,7.6371,1218.9,1218.6,40.94793256]
[1672661960565,7.6391,1218.9,1218.6,40.94493256]
[1672661960886,7.021,1218.9,1218.6,40.94793256]
[1672661961107,9.634659,1218.9,1218.6,40.94793256]
[1672661961680,7.613659,1218.9,1218.7,19.91061]
[1672661961870,5.0,1218.9,1218.7,28.18140142]
[1672661967840,5.0,1218.9,1218.7,32.33026256]
[1672661970049,2.092,1219.0,1218.7,32.33026256]
[1672661970280,13.09680016,1218.9,1218.7,32.33026256]
[1672661971053,5.0,1218.8,1218.7,32.33026256]
[1672661971482,17.8478452,1218.8,1218.7,32.33026256]
[1672661974042,17.8478452,1218.8,1218.7,28.83026256]
[1672661975119,17.8478452,1218.8,1218.7,29.08264638]
[1672661977482,17.8478452,1218.8,1218.7,20.87718638]
[1672661978096,17.8478452,1218.8,1218.7,29.08264638]
[1672661980157,17.8478452,1218.8,1218.7,29.07912747]
[1672661981205,5.0,1218.8,1218.7,29.07912747]
[1672661981895,0.066,1218.9,1218.7,29.07912747]
[1672661982064,11.11602989,1219.0,1218.8,15.85365114]
[1672661982271,11.11602989,1219.0,1218.8,24.12377256]
[1672661984788,11.11602989,1219.0,1218.8,20.62377256]
[1672661985255,11.11602989,1219.0,1218.8,12.41898256]
[1672661985447,0.002,1219.0,1218.8,12.41898256]
[1672661985668,0.831,1219.0,1218.8,12.41898256]
[1672661989486,10.9843,1219.1,1218.9,3.5]
[1672661989705,5.7581376,1219.1,1218.9,3.5]
[1672661990064,5.7581376,1219.1,1218.8,28.82856256]
[1672661991332,9.2581376,1219.1,1218.8,20.62377256]
[1672661991507,5.7581376,1219.1,1218.8,20.62377256]
[1672661996114,5.7581376,1219.1,1218.8,28.82856256]
[1672661998979,5.7581376,1219.1,1218.8,20.62377256]
[1672661999816,13.9610476,1219.1,1218.8,12.41898256]
[1672662000036,5.7581376,1219.1,1218.8,20.62377256]
[1672662003120,22.1638376,1219.1,1218.8,4.21419256]
[1672662003330,30.3667676,1219.1,1218.8,4.14886114]
[1672662004343,30.3667676,1219.1,1218.8,4.14558021]
[1672662005557,30.3667676,1219.1,1218.7,12.02680149]
[1672662005782,2.026,1219.0,1218.7,16.17566263]
[1672662005993,13.26622676,1219.0,1218.7,16.17566263]
[1672662006213,21.47177676,1219.0,1218.7,7.97023263]
[1672662006376,13.26822676,1219.0,1218.7,16.17566263]
[1672662006599,21.47177676,1219.0,1218.7,7.97023263]
[1672662010420,21.47177676,1219.0,1218.7,16.17567263]
[1672662010652,21.46928579,1219.0,1218.7,16.17567263]
[1672662011441,21.46928579,1219.0,1218.7,12.67567263]
[1672662012178,21.46928579,1219.0,1218.7,4.47023263]
[1672662012389,21.46928579,1219.0,1218.7,4.40490121]
[1672662014374,21.46928579,1219.0,1218.7,4.15251739]
[1672662016102,21.46928579,1219.0,1218.7,12.35795739]
[1672662016312,21.46928579,1219.0,1218.7,12.42328881]
[1672662016681,2.02550903,1219.0,1218.7,29.79482463]
[1672662016898,5.8221376,1219.1,1218.8,3.5]
[1672662017151,9.2581376,1219.1,1218.9,8.20411]
[1672662017480,9.2581376,1219.1,1218.9,0.06533142]
[1672662017695,9.2581376,1219.1,1218.8,17.51770142]
[1672662017696,17.4609976,1219.1,1218.8,17.51770142]
[1672662022741,5.7581376,1219.1,1218.8,17.51770142]
[1672662022951,0.002,1219.1,1218.9,4.14886114]
[1672662023169,18.65202,1219.2,1218.9,4.14886114]
[1672662023314,26.85471,1219.2,1218.9,4.14886114]
[1672662023688,16.40566,1219.1,1218.9,4.14886114]
[1672662023860,16.40766,1219.1,1218.9,4.14886114]
[1672662025597,8.20477,1219.1,1218.9,4.14886114]
[1672662025813,11.70477,1219.1,1218.9,4.14886114]
[1672662027487,8.20477,1219.1,1218.9,4.14886114]
[1672662027699,12.0161101,1219.1,1218.9,4.14886114]
[1672662033387,12.0161101,1219.1,1218.9,4.1451883]
[1672662034902,8.20477,1219.1,1218.9,7.6451883]
[1672662035154,8.20477,1219.1,1218.9,4.21051972]
[1672662035365,8.20477,1219.1,1218.9,4.1451883]
[1672662040529,16.40754,1219.1,1218.9,4.1451883]
[1672662040736,20.739981,1219.1,1218.9,4.1451883]
[1672662041344,28.942751,1219.1,1218.8,9.31323142]
[1672662041659,0.6161,1219.0,1218.8,13.46209256]
[1672662041869,16.40822,1218.9,1218.8,13.46209256]
[1672662042137,21.41022,1218.9,1218.8,13.46209256]
[1672662042348,5.002,1218.9,1218.8,13.46209256]
[1672662042881,5.002,1218.9,1218.8,4.21419256]
[1672662043100,5.002,1218.9,1218.8,4.14886114]
[1672662045481,13.20611,1218.9,1218.8,4.14886114]
[1672662046614,5.002,1218.9,1218.8,4.14886114]
[1672662047458,0.002,1218.9,1218.8,4.14886114]
[1672662047665,17.02563,1219.0,1218.8,4.14886114]
[1672662048523,5.0,1218.9,1218.8,4.14886114]
[1672662048739,5.002,1218.9,1218.8,4.14886114]
[1672662054500,0.002,1218.9,1218.8,7.64886114]
[1672662054761,8.82162,1219.0,1218.8,4.21419256]
[1672662054954,8.82162,1219.0,1218.8,4.14886114]
[1672662055144,8.82162,1219.0,1218.8,4.14505663]
[1672662055544,5.0,1218.9,1218.8,4.14505663]
[1672662055762,5.002,1218.9,1218.8,4.14505663]
[1672662058989,5.002,1218.9,1218.8,20.55463663]
[1672662059374,5.002,1218.9,1218.8,28.82475805]
[1672662064850,5.002,1218.9,1218.8,28.82680931]
[1672662065734,5.002,1218.9,1218.8,20.62201931]
[1672662066176,5.002,1218.9,1218.8,28.82680931]
[1672662071974,0.002,1218.9,1218.8,28.82680931]
[1672662072185,2.018,1219.1,1218.8,28.82680931]
[1672662072375,4.208737,1219.1,1218.8,28.82680931]
[1672662072985,5.0,1218.9,1218.8,28.82680931]
[1672662073217,5.002,1218.9,1218.8,28.82680931]
[1672662078307,5.002,1218.9,1218.8,28.82430656]
[1672662078811,5.002,1218.9,1218.8,12.4126753]
[1672662079023,0.002,1218.9,1218.8,12.4126753]
[1672662079197,4.208737,1219.1,1218.8,20.6174653]
[1672662080016,5.0,1218.9,1218.8,20.6174653]
[1672662080287,5.002,1218.9,1218.8,20.6174653]
[1672662082128,5.002,1218.9,1218.8,28.8222553]
[1672662082339,5.002,1218.9,1218.8,20.6174653]
[1672662083410,5.002,1218.9,1218.8,28.8222553]
[1672662084297,5.002,1218.9,1218.8,20.6174653]
[1672662084444,5.002,1218.9,1218.8,28.8222553]
[1672662084820,5.002,1218.9,1218.8,20.6174653]
[1672662085027,5.002,1218.9,1218.8,28.8222553]
[1672662085780,5.002,1218.9,1218.8,20.6174653]
[1672662085954,0.002,1218.9,1218.8,28.8222553]
[1672662086159,4.208737,1219.1,1218.8,20.6174653]
[1672662086582,4.208737,1219.1,1218.8,28.8222553]
[1672662086753,4.208737,1219.1,1218.8,20.6174653]
[1672662086962,5.0,1218.9,1218.8,28.8222553]
[1672662087186,5.002,1218.9,1218.8,20.6174653]
[1672662087442,5.002,1218.9,1218.8,28.8222553]
[1672662088705,5.002,1218.9,1218.8,20.6174653]
[1672662091536,5.002,1218.9,1218.8,28.8222553]
[1672662092854,0.002,1218.9,1218.8,28.8222553]
[1672662093099,4.208737,1219.1,1218.8,28.8222553]
[1672662093948,5.0,1218.9,1218.8,28.8222553]
[1672662094154,5.002,1218.9,1218.8,28.8222553]
[1672662095386,5.002,1218.9,1218.8,20.6174653]
[1672662099922,0.002,1218.9,1218.8,20.6174653]
[1672662100132,4.208737,1219.1,1218.8,20.61376019]
[1672662100866,5.0,1218.9,1218.8,20.61376019]
[1672662101115,5.002,1218.9,1218.8,20.61376019]
[1672662106189,5.002,1218.9,1218.8,16.47491142]
[1672662106492,5.002,1218.9,1218.8,8.27012142]
[1672662106706,5.002,1218.9,1218.8,0.06533142]
[1672662107020,5.0,1218.9,1218.8,16.40958]
[1672662107263,5.002,1218.9,1218.8,16.47491142]
[1672662108071,5.002,1218.9,1218.8,8.27012142]
[1672662111857,5.57021,1218.9,1218.8,0.06533142]
[1672662112065,5.56821,1218.9,1218.7,24.71577849]
[1672662113788,5.0,1218.9,1218.7,24.71577849]
[1672662118612,5.0,1218.9,1218.7,24.68041142]
[1672662118820,5.0,1218.9,1218.7,16.47526142]
[1672662119579,5.0,1218.9,1218.7,8.27013142]
[1672662119923,5.0,1218.9,1218.7,11.77013142]
[1672662124385,5.0,1218.9,1218.7,19.97559142]
[1672662124714,0.066,1219.0,1218.7,19.97271672]
[1672662124930,22.405767,1219.1,1218.7,19.97271672]
[1672662125608,5.0,1218.8,1218.7,19.97271672]
[1672662125864,5.0,1218.8,1218.7,22.97271672]
[1672662126713,5.0,1218.8,1218.7,19.47271672]
[1672662134674,0.066,1218.9,1218.7,19.47271672]
[1672662134940,11.8065,1219.0,1218.7,19.47271672]
[1672662135149,15.2339267,1219.0,1218.7,19.47271672]
[1672662135731,5.0,1218.8,1218.7,19.47271672]
[1672662136401,5.0,1218.8,1218.7,8.26725672]
[1672662136617,5.0,1218.8,1218.7,0.06533142]